bitfinex/quotes_ETHUSD_20251017
["timestamp","ask_amount","ask_price","bid_price","bid_amount"]
[1760726863144,2.60281638,3842.0,3841.6,0.4604]
[1760726863311,2.60281638,3842.0,3841.7,0.4604]
[1760726864532,1.728,3842.0,3841.7,0.4604]
[1760726864918,2.60281307,3842.0,3841.7,0.4604]
[1760726865236,2.60281307,3842.0,3841.5,0.59]
[1760726865542,2.60288675,3841.9,3841.6,0.4604]
[1760726865708,2.60288675,3841.9,3841.5,0.1296]
[1760726865709,2.60308204,3841.6,3841.5,0.1296]
[1760726865910,2.60314981,3841.5,3841.4,0.001]
[1760726866119,2.94005573,3841.5,3841.4,0.001]
[1760726866322,2.98542732,3841.5,3841.4,0.001]
[1760726866524,4.71342732,3841.5,3841.4,0.001]
[1760726866740,7.18266209,3841.5,3841.4,0.001]
[1760726866967,7.15665617,3841.5,3841.4,0.001]
[1760726867566,7.15665617,3841.5,3841.0,0.601]
[1760726867567,2.60342089,3841.1,3841.0,1e-08]
[1760726867739,19.58403454,3841.1,3841.0,1e-08]
[1760726868071,2.60416666,3840.0,3839.6,0.4604]
[1760726868760,2.60416666,3840.0,3839.2,2.60465112]
[1760726868962,0.1993,3840.7,3839.9,1.0604]
[1760726869262,0.04536544,3840.5,3839.9,1.0604]
[1760726869556,2.60416666,3840.0,3839.9,0.6]
[1760726869931,2.60389922,3840.4,3839.9,1.0604]
[1760726870139,1.728,3840.3,3839.9,1.0604]
[1760726870341,2.6039638,3840.3,3839.9,0.6]
[1760726870538,0.04536544,3840.5,3840.2,0.2221]
[1760726870539,2.64924258,3840.5,3840.2,0.2221]
[1760726870762,0.04536544,3840.5,3840.3,0.4604]
[1760726870939,0.04536544,3840.5,3840.4,0.4604]
[1760726871832,0.04536544,3840.5,3840.2,0.2221]
[1760726871833,1.728,3840.4,3840.2,0.2221]
[1760726872071,0.1989,3841.3,3840.3,0.4324]
[1760726872241,2.60356902,3840.9,3840.3,0.75825159]
[1760726872569,0.04538023,3841.3,3840.4,0.4324]
[1760726872735,1.728,3841.0,3840.4,0.4324]
[1760726872938,1.728,3841.1,3840.4,0.4324]
[1760726873147,2.60354558,3841.0,3840.4,0.4324]
[1760726873468,1.77338023,3841.3,3840.4,0.4324]
[1760726873774,2.60349695,3841.0,3840.4,0.4324]
[1760726873971,0.04538023,3841.3,3840.4,3.38816972]
[1760726874177,2.64868365,3841.3,3840.5,3.03621096]
[1760726874379,0.04538023,3841.3,3840.7,2.60369203]
[1760726875491,0.002,3841.9,3841.3,0.4324]
[1760726875644,2.60488938,3841.9,3841.3,0.4324]
[1760726875849,2.60296841,3841.8,3841.3,0.4324]
[1760726876259,1.73,3841.9,3841.4,0.4324]
[1760726876476,2.60489006,3841.9,3841.5,0.4324]
[1760726876661,1.73,3841.9,3841.6,0.4324]
[1760726876867,0.002,3841.9,3841.6,0.4324]
[1760726877063,2.60489248,3841.9,3841.6,0.4324]
[1760726877592,2.60301429,3841.7,3841.6,0.4324]
[1760726877922,2.60301429,3841.7,3841.5,0.1296]
[1760726878052,2.60308204,3841.6,3841.5,0.1296]
[1760726879152,2.60488044,3841.9,3841.1,0.2276]
[1760726879153,2.62900253,3841.8,3841.1,0.2276]
[1760726879360,2.60295468,3841.8,3841.1,0.2276]
[1760726879550,2.60490253,3841.9,3841.2,0.4324]
[1760726879750,2.60294653,3841.8,3841.2,0.4324]
[1760726880085,2.60492792,3841.9,3841.3,0.32634805]
[1760726880255,2.60301526,3841.7,3841.3,0.32634805]
[1760726880581,2.60308536,3841.6,3841.3,0.32634805]
[1760726880762,2.60308536,3841.6,3841.3,0.4324]
[1760726880962,2.60315041,3841.5,3841.3,0.4324]
[1760726881174,2.60309694,3841.6,3841.1,0.2276]
[1760726881368,0.002,3841.9,3841.1,0.2276]
[1760726881369,0.02600592,3841.5,3841.1,0.66]
[1760726881555,2.60327669,3841.4,3841.1,0.66]
[1760726881777,2.60298732,3841.8,3841.1,0.66]
[1760726881974,0.002,3841.9,3841.1,0.66]
[1760726882171,2.60489105,3841.9,3841.2,3.03569676]
[1760726882386,2.60489105,3841.9,3841.3,0.4375]
[1760726882585,2.60295228,3841.8,3841.3,0.4375]
[1760726882797,0.002,3841.9,3841.4,2.60315076]
[1760726882995,0.002,3841.9,3841.3,0.4375]
[1760726883316,2.60301962,3841.7,3841.1,0.2276]
[1760726884011,2.60301104,3841.8,3841.1,2.83098504]
[1760726884303,2.60313807,3841.6,3841.1,0.2276]
[1760726884510,0.24950592,3841.9,3841.1,0.2276]
[1760726884511,0.02600592,3841.5,3841.1,0.2276]
[1760726884674,2.6031367,3841.6,3840.3,1.728]
[1760726884872,2.6031367,3841.6,3840.9,2.60350778]
[1760726885076,2.6031367,3841.6,3840.9,3.04100778]
[1760726885297,2.60301751,3841.7,3840.9,0.4375]
[1760726885570,0.1829,3841.8,3840.9,0.4375]
[1760726885783,2.60308387,3841.6,3840.9,3.04103434]
[1760726886183,2.60294653,3841.8,3840.9,3.04105255]
[1760726886513,2.60309076,3841.6,3840.9,3.04104676]
[1760726886883,0.02600592,3841.5,3840.9,0.4375]
[1760726887097,0.02600592,3841.7,3840.6,0.4375]
[1760726887299,0.02600592,3841.7,3840.2,0.2221]
[1760726887300,0.1829,3841.6,3840.3,0.4375]
[1760726887498,2.6037035,3840.7,3840.2,0.2221]
[1760726887807,0.1829,3841.2,3840.3,0.4375]
[1760726887974,2.60354257,3841.0,3840.3,3.04144143]
[1760726888179,2.60374732,3840.7,3840.2,0.2221]
[1760726888407,2.80217107,3840.9,3840.0,3.04266578]
[1760726888408,2.62976651,3840.6,3840.0,0.4385]
[1760726888724,0.28283665,3840.6,3840.0,0.001]
[1760726889079,0.1296,3840.7,3840.1,0.1296]
[1760726889312,2.60403562,3840.2,3840.1,0.1296]
[1760726890574,0.1296,3840.7,3840.1,0.1296]
[1760726890793,0.1831,3840.6,3840.1,0.1296]
[1760726890993,2.60403104,3840.2,3840.1,0.1296]
[1760726891407,2.78713104,3840.2,3840.1,0.1296]
[1760726891817,3.32883897,3840.2,3840.1,0.1306]
[1760726891982,3.32883897,3840.2,3840.1,0.001]
[1760726892951,5.08284489,3840.2,3840.1,0.001]
[1760726893100,5.05683897,3840.2,3840.1,0.001]
[1760726893412,5.08284489,3840.2,3840.1,0.001]
[1760726893806,5.05683897,3840.2,3840.1,0.001]
[1760726895614,4.91912832,3840.2,3840.1,0.001]
[1760726896530,4.37742039,3840.2,3840.1,0.001]
[1760726897423,4.56052039,3840.2,3840.1,0.001]
[1760726897825,4.37742039,3840.2,3840.1,0.001]
[1760726898940,4.56052039,3840.2,3840.1,0.001]
[1760726899306,4.58652631,3840.2,3840.1,0.001]
[1760726899550,5.27956737,3840.2,3840.1,0.001]
[1760726899734,5.64264622,3840.2,3840.1,0.001]
[1760726901303,1.728,3839.9,3838.0,0.2158]
[1760726901511,2.60538794,3838.2,3837.5,0.2158]
[1760726902215,1.728,3838.2,3837.1,0.4677]
[1760726902416,15.27971002,3837.2,3835.9,0.2261]
[1760726902761,0.1868,3837.2,3836.2,0.2261]
[1760726902912,0.1868,3837.2,3836.3,0.4677]
[1760726902913,1.9148,3837.2,3836.3,0.4677]
[1760726903112,2.605999,3837.3,3836.3,0.4677]
[1760726903348,2.60641294,3836.7,3836.3,0.4677]
[1760726903643,2.60634352,3836.8,3836.4,0.4677]
[1760726903854,2.60647448,3836.6,3836.5,0.4677]
[1760726904160,0.04542878,3837.2,3836.5,0.4677]
[1760726904318,1.728,3837.0,3836.5,0.4677]
[1760726904643,2.60620414,3837.0,3836.5,0.4677]
[1760726904827,1.77342878,3837.2,3836.5,0.4677]
[1760726905138,2.60621285,3837.0,3836.5,0.4677]
[1760726905325,2.6063949,3836.8,3836.6,0.4677]
[1760726905526,2.6515176,3837.2,3836.2,0.6938]
[1760726905727,0.04542878,3837.2,3836.2,0.6938]
[1760726905914,2.60648968,3836.6,3836.2,0.6938]
[1760726906112,2.60654587,3836.5,3836.3,0.4677]
[1760726906439,2.63244809,3836.7,3836.3,0.4677]
[1760726906637,0.02600592,3836.7,3836.3,0.4677]
[1760726906846,2.6063522,3836.8,3836.4,0.4677]
[1760726907035,2.6063522,3836.8,3836.2,0.2261]
[1760726907340,0.77416188,3837.8,3836.2,0.2261]
[1760726907541,0.1296,3837.2,3836.6,0.1296]
[1760726907717,2.73568239,3837.2,3836.7,0.4677]
[1760726907944,1.728,3837.4,3837.1,0.2261]
[1760726908243,2.60600153,3837.3,3837.1,0.6938]
[1760726908538,2.605999,3837.3,3837.2,0.4677]
[1760726908734,4.333999,3837.3,3837.2,0.4677]
[1760726909246,2.60606692,3837.2,3837.1,0.2261]
[1760726909559,2.73545339,3837.6,3837.1,0.6938]
[1760726909711,1.728,3837.4,3837.2,0.4677]
[1760726909911,2.60596747,3837.4,3837.2,0.4677]
[1760726910116,1.728,3837.4,3837.2,0.4677]
[1760726910614,0.04542117,3837.7,3837.3,0.62335999]
[1760726910930,2.60572738,3837.7,3837.6,0.1296]
[1760726911334,2.60551505,3838.1,3837.6,0.5973]
[1760726911335,1.728,3838.1,3837.6,0.5973]
[1760726911522,2.60562136,3837.9,3837.7,0.4677]
[1760726911724,2.60565949,3837.8,3837.7,0.4677]
[1760726911929,2.60572738,3837.7,3837.6,0.1296]
[1760726912733,2.60566904,3837.8,3837.6,0.5973]
[1760726912932,2.6055776,3838.0,3837.6,0.5973]
[1760726913154,2.6056047,3837.9,3837.7,0.4677]
[1760726913361,2.60565949,3837.8,3837.1,1.0271]
[1760726913659,0.04541663,3838.3,3837.2,0.4677]
[1760726913865,0.1296,3839.0,3838.2,0.3454]
[1760726914027,0.04540974,3839.1,3838.2,0.8131]
[1760726914343,2.60498072,3838.8,3838.7,0.1296]
[1760726915955,0.04540974,3839.1,3838.7,0.5973]
[1760726916134,2.60498072,3838.8,3838.7,0.5973]
[1760726916332,2.60498072,3838.8,3838.7,0.4677]
[1760726916539,2.6051538,3838.6,3838.3,0.4677]
[1760726916854,2.6051538,3838.6,3838.4,0.4677]
[1760726917064,2.6051538,3838.6,3838.2,0.2158]
[1760726917065,2.6051538,3838.6,3838.5,0.4677]
[1760726918052,2.60496174,3838.9,3838.5,0.4677]
[1760726918348,1.728,3839.3,3838.6,0.4677]
[1760726918531,0.142,3839.8,3838.6,0.4677]
[1760726918719,2.74634832,3839.8,3838.6,0.4677]
[1760726918918,0.142,3839.8,3838.6,0.4677]
[1760726919352,0.142,3839.8,3838.7,0.8]
[1760726919525,2.60491289,3838.9,3838.7,0.8]
[1760726919725,2.60491289,3838.9,3838.2,2.82117187]
[1760726919726,2.60486805,3839.0,3838.8,0.4677]
[1760726919921,2.60486805,3839.0,3838.9,0.4677]
[1760726920252,0.472,3839.8,3838.4,0.8]
[1760726920464,0.002,3840.2,3838.9,0.4677]
[1760726920919,2.60448246,3839.6,3838.9,0.4677]
[1760726921116,2.60448246,3839.6,3838.9,3.07259221]
[1760726921316,2.60424092,3839.9,3839.5,0.2261]
[1760726921517,2.60443796,3839.6,3839.5,0.2261]
[1760726921761,0.002,3840.2,3839.5,0.6938]
[1760726921956,2.60428695,3839.9,3839.5,0.6938]
[1760726922145,2.60608368,3840.2,3839.6,0.4677]
[1760726922344,0.002,3840.2,3839.6,0.4677]
[1760726922662,0.002,3840.2,3839.6,0.79753283]
[1760726922953,2.60604345,3840.2,3839.6,0.79753283]
[1760726923156,2.60412265,3840.1,3839.6,0.79753283]
[1760726923464,0.002,3840.2,3839.2,0.6938]
[1760726923631,2.60433716,3839.8,3839.2,0.6938]
[1760726923832,0.002,3840.2,3839.3,1.2677]
[1760726924027,2.60442001,3839.7,3839.3,1.2677]
[1760726924233,2.60442001,3839.7,3839.4,0.4677]
[1760726924433,2.60439149,3839.7,3839.4,0.61708]
[1760726924634,2.60439149,3839.7,3839.5,0.4677]
[1760726924833,2.60439149,3839.7,3839.5,1.2677]
[1760726925255,0.002,3840.2,3839.5,1.2677]
[1760726925529,0.002,3840.2,3840.1,0.2261]
[1760726925743,0.002,3840.2,3840.1,0.53516875]
[1760726925957,0.002,3840.2,3840.1,1.00286875]
[1760726926134,0.002,3840.2,3840.1,3.58092662]
[1760726926342,0.002,3840.2,3840.1,3.71052662]
[1760726926731,0.002,3840.2,3840.1,1.10642777]
[1760726927132,0.002,3840.2,3840.1,3.7365676]
[1760726927454,0.002,3840.2,3840.1,3.71052662]
[1760726927826,0.002,3840.2,3840.1,4.51052662]
[1760726928260,0.002,3840.2,3840.1,1.30912777]
[1760726928472,0.002,3840.2,3840.1,1.4938]
[1760726929663,0.002,3840.2,3840.1,4.09789885]
[1760726930455,0.002,3840.2,3840.1,1.4938]
[1760726930996,2.60603104,3840.2,3840.1,0.8]
[1760726931146,0.002,3840.2,3840.1,0.8]
[1760726931344,0.002,3840.2,3839.3,0.4677]
[1760726931345,0.3301,3840.2,3839.3,0.4677]
[1760726931579,2.60415447,3840.1,3839.0,0.2261]
[1760726931796,2.60415447,3840.1,3839.4,2.60455376]
[1760726931952,0.002,3840.2,3839.4,2.02146228]
[1760726932157,0.002,3840.2,3839.4,1.56226228]
[1760726932386,0.002,3840.2,3839.5,0.4592]
[1760726932556,0.002,3840.2,3839.9,2.60423162]
[1760726932751,0.002,3840.2,3839.6,2.60443796]
[1760726932966,0.002,3840.2,3839.6,2.60442601]
[1760726933186,0.002,3840.2,3839.7,2.60433376]
[1760726933546,0.002,3840.2,3839.6,2.60437914]
[1760726933748,0.002,3840.2,3839.4,0.8]
[1760726933949,0.002,3840.2,3839.5,0.4592]
[1760726934264,0.002,3840.2,3839.7,2.60436108]
[1760726934564,0.002,3840.2,3839.8,2.60429675]
[1760726934872,0.002,3840.2,3839.5,0.86818624]
[1760726935076,0.002,3840.2,3839.6,2.60443796]
[1760726935255,0.002,3840.2,3839.7,2.60435624]
[1760726935779,2.60414003,3840.1,3839.5,2.60450526]
[1760726936176,2.60414003,3840.1,3839.4,3.404551]
[1760726936544,2.60606177,3840.2,3839.5,2.60450579]
[1760726936749,0.002,3840.2,3839.5,2.60450579]
[1760726937057,0.002,3840.2,3839.4,0.8]
[1760726937258,2.60415594,3840.1,3839.4,3.40454487]
[1760726937680,0.002,3840.2,3839.6,2.60443391]
[1760726937976,0.002,3840.2,3839.4,1.2592]
[1760726938194,2.60415788,3840.1,3839.4,3.40454819]
[1760726938397,2.60603104,3840.2,3840.1,0.1296]
[1760726938698,3.4596292,3840.2,3840.1,0.1296]
[1760726939110,2.60462973,3839.4,3838.7,2.6049921]
[1760726939328,2.60462973,3839.4,3839.3,0.1296]
[1760726939814,0.4661,3839.7,3839.3,0.1296]
[1760726940009,2.60457363,3839.4,3838.7,2.60503236]
[1760726940167,0.2606,3839.4,3838.2,0.2158]
[1760726940372,2.86517363,3839.4,3839.3,0.1296]
[1760726940781,2.86517363,3839.4,3838.3,0.8]
[1760726940782,1.9886,3839.4,3838.3,0.8]
[1760726941084,1.9886,3839.4,3837.9,0.217]
[1760726941085,0.2166,3839.6,3838.6,2.60510928]
[1760726941286,2.60450579,3839.5,3838.7,3.09029139]
[1760726941615,0.51149431,3840.1,3838.8,0.4592]
[1760726941771,2.6043814,3839.7,3838.9,2.60485793]
[1760726941965,2.6043814,3839.7,3838.6,3.40505675]
[1760726941966,2.60454603,3839.5,3838.6,3.40505675]
[1760726942169,2.86497013,3839.7,3838.7,2.605012]
[1760726942378,2.60456778,3839.5,3838.6,3.86429942]
[1760726942584,0.2606,3839.7,3838.7,0.38642994]
[1760726942809,2.60427104,3839.9,3838.8,0.4332]
[1760726942969,0.217,3840.0,3838.8,0.4332]
[1760726943170,0.28620592,3839.9,3838.6,0.8]
[1760726943376,2.60455948,3839.5,3838.8,2.60497788]
[1760726943993,2.60455948,3839.5,3838.9,2.60490124]
[1760726944209,2.60455948,3839.5,3838.8,2.60496624]
[1760726944375,2.60436912,3839.8,3838.9,3.03811286]
[1760726944575,2.60437871,3839.7,3839.0,2.60482484]
[1760726944774,0.217,3840.0,3839.1,0.234]
[1760726944994,2.60445064,3839.6,3839.1,0.234]
[1760726946710,0.2602,3839.9,3839.0,0.02604845]
[1760726946911,2.60447033,3839.6,3839.0,0.02604845]
[1760726947118,0.2602,3839.9,3838.8,0.4332]
[1760726947119,2.60454156,3839.5,3838.8,3.03816694]
[1760726947320,2.60458104,3839.4,3838.8,0.4332]
[1760726947515,2.60452995,3839.5,3838.8,3.03816707]
[1760726947815,2.60457974,3839.4,3838.8,1.07752679]
[1760726948016,0.2602,3839.9,3838.8,1.07752679]
[1760726948219,2.63030822,3839.8,3838.6,0.8]
[1760726948422,2.60465159,3839.3,3838.7,2.60503831]
[1760726949010,0.2602,3839.7,3838.6,1.2332]
[1760726949322,0.217,3840.0,3838.6,1.2332]
[1760726949323,2.60448269,3839.6,3838.9,2.60486097]
[1760726949496,0.217,3840.0,3838.8,2.60497257]
[1760726949823,0.217,3840.0,3838.9,2.60490668]
[1760726949824,2.60454942,3839.5,3838.9,2.60490668]
[1760726950123,2.60454942,3839.5,3838.8,2.60496097]
[1760726950326,2.60457849,3839.4,3838.8,2.60496097]
[1760726950521,2.86463494,3839.7,3838.7,0.4332]
[1760726950522,2.60471492,3839.2,3838.7,0.4332]
[1760726950820,2.60466092,3839.3,3839.1,0.1296]
[1760726951517,2.60461547,3839.4,3839.1,0.1296]
[1760726951927,2.86474252,3839.5,3839.3,0.1296]
[1760726952295,2.60457363,3839.4,3839.3,0.1296]
[1760726953537,3.38567854,3839.4,3839.3,0.1296]
[1760726953838,2.60499629,3838.8,3838.3,0.0260532]
[1760726954131,2.60485629,3839.0,3838.4,2.60525183]
[1760726954319,2.50910491,3839.4,3838.4,2.63126299]
[1760726954521,2.50910491,3839.4,3838.3,4.05550942]
[1760726954722,2.60498949,3838.8,3838.3,1.4502]
[1760726954896,2.60493655,3838.9,3838.3,1.80308343]
[1760726955235,2.60484505,3839.0,3838.3,4.40840163]
[1760726955535,2.60479858,3839.1,3838.5,2.60517718]
[1760726955692,2.60476778,3839.2,3838.5,2.60517202]
[1760726955898,0.2602,3839.3,3838.3,1.80308343]
[1760726956097,2.60488897,3839.0,3838.4,2.60522469]
[1760726956299,2.60473237,3839.2,3838.5,2.60514038]
[1760726956525,2.60478351,3839.1,3838.5,2.60514038]
[1760726957019,2.60472874,3839.2,3838.5,2.60514038]
[1760726957412,2.6047825,3839.1,3838.5,2.60514038]
[1760726957619,2.60472719,3839.2,3838.5,2.60514038]
[1760726957815,1.728,3839.5,3838.6,0.4332]
[1760726958015,0.2175,3839.7,3839.1,0.234]
[1760726958219,0.2175,3839.7,3838.6,0.4332]
[1760726958396,2.60443796,3839.6,3838.9,2.60485719]
[1760726958596,2.60443796,3839.6,3838.9,3.16916777]
[1760726958801,2.60445058,3839.6,3838.9,3.16916462]
[1760726959097,2.60451255,3839.5,3838.9,3.16916462]
[1760726959632,2.60450173,3839.6,3838.9,3.16916462]
[1760726959802,2.82189337,3839.7,3839.0,2.60483647]
[1760726959998,2.60431115,3839.8,3839.1,2.83872852]
[1760726960204,2.60431115,3839.8,3839.2,2.60469916]
[1760726960430,2.82211489,3840.0,3839.3,2.63064081]
[1760726960676,2.8220915,3840.0,3839.3,2.63064081]
[1760726961103,2.6041915,3840.0,3839.3,2.63064081]
[1760726961503,2.6042426,3839.9,3839.3,2.63064081]
[1760726961702,2.60419119,3840.0,3839.3,2.63064081]
[1760726961912,2.6042772,3839.9,3839.2,0.02604709]
[1760726962112,2.60423448,3839.9,3839.1,3.27192422]
[1760726962312,2.82248741,3840.0,3839.2,2.60470665]
[1760726962646,2.60430842,3839.8,3839.2,2.60469688]
[1760726963051,2.60441119,3839.7,3839.1,0.64542393]
[1760726963348,2.86331119,3839.7,3839.1,2.60477661]
[1760726963519,0.2589,3839.7,3838.9,3.04679904]
[1760726963838,2.86327013,3839.7,3839.6,0.1296]
[1760726964233,2.88927605,3839.7,3839.6,0.1296]
[1760726964832,2.60443796,3839.6,3838.3,1.017]
[1760726965032,2.60502916,3838.8,3837.9,2.82258559]
[1760726965236,2.79405586,3838.7,3838.0,2.60552371]
[1760726965544,0.2582,3838.6,3837.5,0.001]
[1760726965722,0.2582,3839.0,3838.6,0.1296]
[1760726965913,2.60498918,3838.8,3838.6,0.1296]
[1760726966235,2.60504858,3838.7,3838.6,0.1296]
[1760726966441,2.86250199,3838.8,3838.6,0.1296]
[1760726966613,2.60504858,3838.7,3838.6,0.1296]
[1760726966817,0.2575,3838.8,3838.6,0.1296]
[1760726967055,0.1897,3839.0,3838.6,0.1296]
[1760726967252,0.2575,3838.9,3838.6,0.1296]
[1760726967543,0.2575,3838.8,3837.9,0.8]
[1760726967731,2.86249736,3838.8,3838.7,0.1296]
[1760726968132,0.56570981,3838.8,3838.7,0.1296]
[1760726968339,2.86252695,3838.8,3838.7,0.1296]
[1760726969519,2.60525238,3838.4,3837.9,0.8]
[1760726969838,0.2575,3838.4,3837.9,3.40557687]
[1760726970043,0.2575,3838.4,3837.9,2.60557687]
[1760726970243,2.60513604,3838.6,3837.9,2.60557687]
[1760726970744,0.2575,3838.7,3837.8,0.8]
[1760726970939,2.60516036,3838.6,3837.9,2.60558407]
[1760726971247,0.2575,3838.7,3837.9,2.60558407]
[1760726971248,2.60521329,3838.5,3837.9,2.60558407]
[1760726971457,2.60513646,3838.6,3837.9,2.60558407]
[1760726971751,2.60519343,3838.5,3837.9,2.60558407]
[1760726972731,0.28350592,3838.4,3837.5,0.001]
[1760726972963,2.60572329,3837.8,3837.5,0.001]
[1760726973265,2.60573384,3837.7,3837.5,0.001]
[1760726973563,2.60532006,3838.3,3837.5,0.001]
[1760726973564,2.60579528,3837.6,3837.5,0.001]
[1760726973932,0.2572,3837.7,3837.5,0.001]
[1760726974132,2.82721715,3837.8,3837.5,0.001]
[1760726974353,2.60573791,3837.7,3837.5,0.001]
[1760726974744,2.60579528,3837.6,3837.5,0.001]
[1760726975163,0.2215,3837.8,3837.5,0.001]
[1760726975363,2.60572738,3837.7,3837.5,0.001]
[1760726975933,2.65081975,3838.2,3837.5,0.001]
[1760726976276,2.98784295,3838.2,3837.5,0.4429]
[1760726976472,2.60529623,3838.4,3837.7,2.60567622]
[1760726976647,0.2307,3838.6,3837.6,0.82605795]
[1760726976840,2.60532946,3838.3,3837.7,0.4419]
[1760726977043,2.83586161,3838.6,3837.9,2.60557512]
[1760726977243,2.60519127,3838.5,3837.8,2.60563432]
[1760726977462,2.8358345,3838.6,3837.9,2.60557766]
[1760726977778,0.4378,3839.0,3838.0,2.60547917]
[1760726977960,2.60525649,3838.4,3837.9,0.4419]
[1760726978137,0.2481,3838.7,3837.6,0.8]
[1760726978341,2.60538241,3838.3,3837.6,3.84768247]
[1760726978540,0.2481,3838.7,3837.6,3.84768045]
[1760726978541,2.60526164,3838.4,3837.6,3.84768045]
[1760726978766,2.60491286,3838.9,3837.7,2.60572738]
[1760726978940,2.6051833,3838.6,3837.8,0.82676274]
[1760726979268,0.1897,3839.0,3837.9,0.4419]
[1760726979470,2.60492975,3838.9,3838.0,2.60552371]
[1760726979674,0.12717437,3839.7,3838.9,0.1296]
[1760726979876,0.4358,3839.8,3839.3,0.1296]
[1760726980056,3.04011146,3839.8,3839.3,0.1296]
[1760726980368,0.5401342,3840.2,3839.3,0.1296]
[1760726980369,2.60443864,3839.6,3839.3,0.1296]
[1760726981438,2.60450587,3839.5,3839.3,0.1296]
[1760726981640,2.60457363,3839.4,3839.3,0.1296]
[1760726981847,3.06437955,3839.4,3839.3,0.1296]
[1760726983247,2.60457363,3839.4,3839.3,0.1296]
[1760726983764,2.60449526,3839.6,3839.3,0.1296]
[1760726984067,2.60424822,3839.9,3839.3,0.1296]
[1760726984273,2.60448743,3839.6,3838.9,0.4419]
[1760726984481,2.60448743,3839.6,3839.5,0.1296]
[1760726985247,0.2203,3840.0,3839.5,0.1296]
[1760726985474,2.60433316,3839.8,3839.5,0.1296]
[1760726985649,2.60424108,3839.9,3839.2,3.04660547]
[1760726985854,2.60424108,3839.9,3839.8,0.1296]
[1760726986066,3.03594108,3839.9,3839.8,0.1296]
[1760726986766,3.25854108,3839.9,3839.8,0.1296]
[1760726992752,3.84974482,3839.9,3839.8,0.1296]
[1760726995487,0.002,3840.0,3839.8,0.1296]
[1760726995857,2.60423448,3839.9,3839.8,0.1296]
[1760726997391,0.002,3840.0,3839.8,0.1296]
[1760726997561,2.60423448,3839.9,3839.8,0.1296]
[1760726997881,2.60621044,3840.0,3839.8,0.1296]
[1760726998688,0.002,3840.0,3839.9,0.4489]
[1760727000255,0.002,3840.0,3839.9,0.79323351]
[1760727000471,0.002,3840.0,3839.9,0.76719117]
[1760727000680,0.002,3840.0,3839.9,0.4489]
[1760727001006,0.002,3840.0,3839.8,0.1296]
[1760727001302,0.6464,3839.9,3839.1,0.2262]
[1760727001461,2.60437361,3839.7,3839.1,0.2262]
[1760727001802,2.60437361,3839.7,3839.1,2.83097634]
[1760727002006,2.60432216,3839.8,3839.2,2.60469849]
[1760727002312,0.002,3840.0,3839.2,0.4489]
[1760727002479,0.002,3840.0,3839.3,0.4676]
[1760727003318,2.6043023,3839.8,3839.1,0.2262]
[1760727003497,2.604526,3839.5,3838.2,2.60533493]
[1760727003700,3.04962624,3839.4,3838.3,0.92341349]
[1760727004010,0.47100592,3839.4,3838.3,0.4676]
[1760727004309,2.60486178,3839.0,3838.3,0.4676]
[1760727004465,3.04979847,3839.1,3838.0,0.4676]
[1760727004670,0.445,3839.5,3838.2,0.4676]
[1760727004882,0.445,3839.5,3838.6,2.60506721]
[1760727005112,2.60470951,3839.2,3838.5,2.60516343]
[1760727005281,2.60470951,3839.2,3838.6,2.60510895]
[1760727005602,2.60470951,3839.2,3838.6,2.60510453]
[1760727005901,0.445,3839.5,3838.7,2.60504527]
[1760727006103,0.002,3839.9,3839.4,0.2194]
[1760727006288,0.002,3839.9,3839.5,0.49364505]
[1760727006490,0.002,3839.9,3839.5,0.4676]
[1760727006678,0.002,3839.9,3839.6,2.60438339]
[1760727006877,0.002,3839.9,3839.4,2.82394734]
[1760727006878,0.002,3839.9,3839.5,3.072094]
[1760727007196,0.2014,3839.8,3838.6,0.4676]
[1760727007403,0.002,3839.9,3839.2,0.2194]
[1760727007606,2.60626959,3839.9,3839.2,0.2194]
[1760727007917,0.002,3839.9,3839.3,0.4676]
[1760727008226,2.60437013,3839.7,3838.3,2.60527793]
[1760727008376,2.6047599,3839.2,3838.2,0.4676]
[1760727008686,2.60456864,3839.5,3838.2,0.4676]
[1760727008882,0.2039,3839.8,3838.2,0.4676]
[1760727008883,0.2039,3839.8,3838.8,2.60492038]
[1760727009088,2.60445002,3839.6,3838.9,3.07250846]
[1760727009703,2.60452711,3839.5,3838.9,0.4676]
[1760727009901,0.2039,3839.8,3838.9,0.4676]
[1760727009902,2.60459079,3839.4,3838.9,0.4676]
[1760727010103,2.60452216,3839.5,3838.9,0.4676]
[1760727010416,0.2039,3839.8,3838.7,3.07263527]
[1760727010417,2.60461687,3839.4,3838.7,3.07263527]
[1760727010727,2.60448689,3839.6,3838.9,2.60486243]
[1760727010900,2.6043023,3839.8,3839.1,2.60473168]
[1760727011224,2.60434948,3839.8,3839.7,0.1296]
[1760727011419,0.002,3839.9,3839.7,0.1296]
[1760727011919,0.002,3839.9,3839.7,0.5972]
[1760727012220,0.002,3839.9,3839.7,0.1296]
[1760727012623,2.60624508,3839.9,3839.7,0.1296]
[1760727012913,0.2059,3839.9,3839.7,0.1296]
[1760727013352,2.6062647,3839.9,3839.7,0.1296]
[1760727013718,0.002,3839.9,3839.7,0.1296]
[1760727014552,0.002,3839.9,3839.7,0.5972]
[1760727014712,0.002,3839.9,3839.7,0.1296]
[1760727015407,0.002,3839.9,3839.8,0.4676]
[1760727015658,0.002,3839.9,3839.8,1.0482057]
[1760727015835,0.002,3839.9,3839.8,0.5806057]
[1760727016019,0.002,3839.9,3839.7,0.1296]
[1760727016222,2.60629333,3839.9,3839.7,0.1296]
[1760727016453,2.6043023,3839.8,3839.7,0.1296]
[1760727017521,3.0422023,3839.8,3839.7,0.1296]
[1760727019354,9.02887748,3839.8,3839.7,0.1296]
[1760727019525,2.6047289,3839.2,3838.4,0.4676]
[1760727019721,0.4379,3839.4,3838.4,0.4676]
[1760727020054,2.60477055,3839.2,3838.5,2.60513159]
[1760727020351,2.60477055,3839.2,3838.6,2.60510855]
[1760727020555,2.60477055,3839.2,3839.1,0.1296]
[1760727021263,2.60465114,3839.3,3839.1,0.1296]
[1760727021435,2.60470931,3839.2,3839.1,0.1296]